fUSD/lending_fUSD_20251102
["ID","MTS","AMOUNT","RATE_DAILY","PERIOD"]
[392908758,1762123831424,-1487.85567649,0.00014773,2]
[392908759,1762123831434,-193.64098842,0.00014777,2]
[392908760,1762123831444,-1200.0,0.00014783,2]
[392908761,1762123831455,-258.0,0.00014783,2]
[392908762,1762123831465,-1200.0,0.00014783,2]
[392908763,1762123831475,-300.0,0.00014785,2]
[392908764,1762123831486,-300.0,0.00014785,2]
[392908765,1762123831496,-2500.0,0.00014786,2]
[392908766,1762123831507,-279.5781,0.00014791,2]
[392908767,1762123831518,-865.5538498,0.00014805,2]
[392908768,1762123831528,-6772.91323815,0.00014809,2]
[392908769,1762123831539,-150.0,0.00014872,2]
[392908770,1762123831550,-500.0,0.00014873,2]
[392908771,1762123831561,-500.0,0.00014873,2]
[392908772,1762123831572,-500.0,0.00014873,2]
[392908773,1762123831583,-500.0,0.00014873,2]
[392908774,1762123831593,-500.0,0.00014873,2]
[392908775,1762123831603,-503.91202727,0.00014873,2]
[392908776,1762123831613,-500.0,0.00014873,2]
[392908777,1762123831624,-200.0,0.00014877,2]
[392908778,1762123831634,-151.0,0.00014877,2]
[392908779,1762123831644,-500.0,0.00014877,2]
[392908780,1762123831654,-151.0,0.00014877,2]
[392908781,1762123831664,-500.0,0.00014877,2]
[392908782,1762123831675,-151.0,0.00014877,2]
[392908783,1762123831686,-500.0,0.00014877,2]
[392908784,1762123831696,-151.0,0.00014877,2]
[392908785,1762123831706,-500.0,0.00014877,2]
[392908786,1762123831716,-500.0,0.00014877,2]
[392908787,1762123831727,-151.0,0.00014877,2]
[392908788,1762123831737,-500.0,0.00014877,2]
[392908789,1762123831746,-151.0,0.00014877,2]
[392908790,1762123831756,-500.0,0.00014877,2]
[392908791,1762123831766,-151.0,0.00014877,2]
[392908792,1762123831776,-500.0,0.00014877,2]
[392908793,1762123831786,-151.0,0.00014877,2]
[392908794,1762123831796,-500.0,0.00014877,2]
[392908795,1762123831807,-151.0,0.00014877,2]
[392908796,1762123831818,-500.0,0.00014877,2]
[392908797,1762123831829,-151.0,0.00014877,2]
[392908798,1762123831839,-500.0,0.00014877,2]
[392908799,1762123831849,-151.0,0.00014877,2]
[392908800,1762123831858,-500.0,0.00014877,2]
[392908801,1762123831868,-151.0,0.00014877,2]
[392908802,1762123831878,-500.0,0.00014877,2]
[392908803,1762123831888,-151.0,0.00014877,2]
[392908804,1762123831899,-500.0,0.00014877,2]
[392908805,1762123831910,-151.0,0.00014877,2]
[392908807,1762123831920,-281.55946028,0.00014877,2]
[392908809,1762123831931,-151.0,0.00014877,2]
[392908810,1762123831942,-500.0,0.00014877,2]
[392908811,1762123831952,-151.0,0.00014877,2]
[392908812,1762123831962,-151.0,0.00014877,2]
[392908813,1762123831972,-151.0,0.00014877,2]
[392908814,1762123831984,-200.0,0.00014877,2]
[392908815,1762123831994,-151.0,0.00014877,2]
[392908816,1762123832004,-151.0,0.00014877,2]
[392908817,1762123832014,-151.0,0.00014877,2]
[392908818,1762123832025,-151.0,0.00014877,2]
[392908819,1762123832035,-151.0,0.00014877,2]
[392908820,1762123832044,-151.0,0.00014877,2]
[392908821,1762123832054,-200.0,0.00014877,2]
[392908822,1762123832064,-202.78443337,0.00014885,2]
[392908823,1762123832075,-500.0,0.00014885,2]
[392908824,1762123832085,-500.0,0.00014885,2]
[392908825,1762123832095,-500.0,0.00014885,2]
[392908826,1762123832105,-500.0,0.00014885,2]
[392908827,1762123832115,-500.0,0.00014885,2]
[392908828,1762123832125,-400.0,0.00014885,2]
[392908829,1762123832134,-500.0,0.00014885,2]
[392908830,1762123832144,-500.0,0.00014885,2]
[392908831,1762123832154,-500.0,0.00014885,2]
[392908832,1762123832164,-500.0,0.00014885,2]
[392908833,1762123832174,-500.0,0.00014885,2]
[392908834,1762123832184,-500.0,0.00014885,2]
[392908835,1762123832194,-500.0,0.00014885,2]
[392908836,1762123832204,-500.0,0.00014885,2]
[392908837,1762123832214,-500.0,0.00014885,2]
[392908838,1762123832224,-500.0,0.00014885,2]
[392908839,1762123832233,-500.0,0.00014885,2]
[392908840,1762123832243,-500.0,0.00014885,2]
[392908841,1762123832253,-500.0,0.00014885,2]
[392908842,1762123832263,-500.0,0.00014885,2]
[392908843,1762123832273,-500.0,0.00014885,2]
[392908844,1762123832283,-500.0,0.00014885,2]
[392908845,1762123832293,-500.0,0.00014885,2]
[392908846,1762123832303,-500.0,0.00014885,2]
[392908847,1762123832312,-500.0,0.00014885,2]
[392908848,1762123832322,-500.0,0.00014885,2]
[392908849,1762123832332,-500.0,0.00014885,2]
[392908850,1762123832342,-500.0,0.00014885,2]
[392908851,1762123832351,-500.0,0.00014885,2]
[392908852,1762123832361,-500.0,0.00014885,2]
[392908853,1762123832371,-500.0,0.00014885,2]
[392908854,1762123832381,-500.0,0.00014885,2]
[392908855,1762123832391,-500.0,0.00014885,2]
[392908856,1762123832401,-500.0,0.00014885,2]
[392908857,1762123832410,-500.0,0.00014885,2]
[392908858,1762123832420,-500.0,0.00014885,2]
[392908859,1762123832430,-500.0,0.00014885,2]
[392908860,1762123832440,-500.0,0.00014885,2]
[392908861,1762123832451,-500.0,0.00014885,2]
[392908862,1762123832460,-500.0,0.00014885,2]
[392908863,1762123832471,-500.0,0.00014885,2]
[392908864,1762123832481,-500.0,0.00014885,2]
[392908865,1762123832491,-500.0,0.00014885,2]
[392908866,1762123832500,-500.0,0.00014885,2]
[392908867,1762123832510,-500.0,0.00014885,2]
[392908868,1762123832520,-500.0,0.00014885,2]
[392908869,1762123832530,-500.0,0.00014885,2]
[392908870,1762123832540,-384.05365974,0.00014885,2]
[392908871,1762123832550,-500.0,0.00014885,2]
[392908872,1762123832560,-500.0,0.00014885,2]
[392908873,1762123832570,-500.0,0.00014885,2]
[392908874,1762123832580,-500.0,0.00014885,2]
[392908875,1762123832590,-500.0,0.00014885,2]
[392908876,1762123832600,-500.0,0.00014885,2]
[392908877,1762123832610,-500.0,0.00014885,2]
[392908878,1762123832620,-500.0,0.00014885,2]
[392908879,1762123832630,-500.0,0.00014885,2]
[392908880,1762123832641,-500.0,0.00014885,2]
[392908881,1762123832650,-500.0,0.00014885,2]
[392908882,1762123832661,-500.0,0.00014885,2]
[392908883,1762123832671,-500.0,0.00014885,2]
[392908884,1762123832681,-500.0,0.00014885,2]
[392908885,1762123832691,-500.0,0.00014885,2]
[392908886,1762123832701,-500.0,0.00014885,2]
[392908887,1762123832711,-500.0,0.00014885,2]
[392908888,1762123832722,-500.0,0.00014885,2]
[392908889,1762123832732,-500.0,0.00014885,2]
[392908890,1762123832742,-500.0,0.00014885,2]
[392908891,1762123832752,-500.0,0.00014885,2]
[392908892,1762123832762,-500.0,0.00014885,2]
[392908893,1762123833166,-500.0,0.00014885,2]
[392908894,1762123833191,-150.0,0.00014885,2]
[392908895,1762123833214,-500.0,0.00014885,2]
[392908896,1762123833225,-52237.0989,0.00014886,2]
[392908897,1762123833235,-1000.0,0.00014886,2]
[392908898,1762123833244,-685.7702,0.00014886,2]
[392908899,1762123833253,-507.83,0.00014891,2]
[392908900,1762123833262,-4448.62288212,0.00014899,2]
[392908901,1762123833271,-578.20924308,0.00014909,2]
[392908902,1762123833279,-500.0,0.00014909,2]
[392908903,1762123833288,-250.0,0.00014909,2]
[392908904,1762123833298,-250.0,0.00014909,2]
[392908905,1762123833307,-500.0,0.00014909,2]
[392908906,1762123833315,-250.0,0.00014909,2]
[392908907,1762123833325,-250.0,0.00014909,2]
[392908908,1762123833334,-500.0,0.00014909,2]
[392908909,1762123833343,-250.0,0.00014909,2]
[392908910,1762123833353,-250.0,0.00014909,2]
[392908911,1762123833362,-500.0,0.00014909,2]
[392908912,1762123833371,-250.0,0.00014909,2]
[392908913,1762123833380,-250.0,0.00014909,2]
[392908914,1762123833389,-500.0,0.00014909,2]
[392908915,1762123833398,-250.0,0.00014909,2]
[392908916,1762123833407,-160.0,0.00014909,2]
[392908917,1762123833416,-500.0,0.00014909,2]
[392908918,1762123833426,-250.0,0.00014909,2]
[392908919,1762123833435,-250.0,0.00014909,2]
[392908920,1762123833445,-8260.13072239,0.00014909,2]
[392908921,1762123833454,-500.0,0.00014909,2]
[392908922,1762123833464,-151.0,0.00014909,2]
[392908923,1762123833473,-500.0,0.00014909,2]
[392908924,1762123833482,-250.0,0.00014909,2]
[392908925,1762123833491,-250.0,0.00014909,2]
[392908926,1762123833500,-500.0,0.00014909,2]
[392908927,1762123833509,-151.0,0.00014909,2]
[392908928,1762123833519,-500.0,0.00014909,2]
[392908929,1762123833528,-250.0,0.00014909,2]
[392908930,1762123833537,-250.0,0.00014909,2]
[392908931,1762123833546,-500.0,0.00014909,2]
[392908932,1762123833556,-151.0,0.00014909,2]
[392908933,1762123833565,-500.0,0.00014909,2]
[392908934,1762123833575,-250.0,0.00014909,2]
[392908935,1762123833584,-250.0,0.00014909,2]
[392908936,1762123833593,-500.0,0.00014909,2]
[392908937,1762123833602,-151.0,0.00014909,2]
[392908938,1762123833611,-250.0,0.00014909,2]
[392908939,1762123833621,-250.0,0.00014909,2]
[392908940,1762123833630,-500.0,0.00014909,2]
[392908941,1762123833639,-500.0,0.00014909,2]
[392908942,1762123833649,-151.0,0.00014909,2]
[392908943,1762123833658,-187.78006525,0.00014909,2]
[392908944,1762123833667,-250.0,0.00014909,2]
[392908945,1762123833676,-250.0,0.00014909,2]
[392908946,1762123833685,-500.0,0.00014909,2]
[392908947,1762123833694,-500.0,0.00014909,2]
[392908948,1762123833704,-151.0,0.00014909,2]
[392908949,1762123833713,-250.0,0.00014909,2]
[392908950,1762123833722,-500.0,0.00014909,2]
[392908951,1762123833731,-500.0,0.00014909,2]
[392908952,1762123833740,-151.0,0.00014909,2]
[392908953,1762123833749,-151.0,0.00014909,2]
[392908954,1762123833758,-500.0,0.00014909,2]
[392908955,1762123833767,-151.0,0.00014909,2]
[392908956,1762123833776,-500.0,0.00014909,2]
[392908957,1762123833785,-500.0,0.00014909,2]
[392908958,1762123833795,-151.0,0.00014909,2]
[392908959,1762123833803,-500.0,0.00014909,2]
[392908960,1762123833812,-500.0,0.00014909,2]
[392908961,1762123833822,-151.0,0.00014909,2]
[392908962,1762123833831,-500.0,0.00014909,2]
[392908963,1762123833841,-151.0,0.00014909,2]
[392908964,1762123833852,-500.0,0.00014909,2]
[392908965,1762123833862,-500.0,0.00014909,2]
[392908966,1762123833872,-322.6107,0.00014909,2]
[392908967,1762123833882,-500.0,0.00014909,2]
[392908968,1762123833891,-500.0,0.00014909,2]
[392908969,1762123833904,-500.0,0.00014909,2]
[392908970,1762123833914,-514.8407087,0.00014909,2]
[392908971,1762123833923,-151.0,0.00014909,2]
[392908972,1762123833933,-500.0,0.00014909,2]
[392908973,1762123833942,-500.0,0.00014909,2]
[392908974,1762123833954,-337.04050925,0.00014909,2]
[392908975,1762123833965,-500.0,0.00014909,2]
[392908976,1762123833984,-195.06381309,0.00014909,2]
[392908977,1762123833993,-500.0,0.00014909,2]
[392908978,1762123834003,-500.0,0.00014909,2]
[392908979,1762123834012,-500.0,0.00014909,2]
[392908980,1762123834023,-500.0,0.00014909,2]
[392908981,1762123834034,-500.0,0.00014909,2]
[392908982,1762123834044,-151.0,0.00014909,2]
[392908983,1762123834054,-500.0,0.00014909,2]
[392908984,1762123834065,-500.0,0.00014909,2]
[392908985,1762123834075,-500.0,0.00014909,2]
[392908986,1762123834085,-500.0,0.00014909,2]
[392908987,1762123834094,-239.84119403,0.00014909,2]
[392908988,1762123834103,-187.78006525,0.00014909,2]
[392908989,1762123834114,-646.65982734,0.00014909,2]
[392908990,1762123834123,-151.0,0.00014935,2]
[392908991,1762123834132,-2192.7549,0.00014942,2]
[392908992,1762123834142,-8565.75555911,0.00014964,2]
[392908993,1762123834151,-500.0,0.00014994,2]
[392908994,1762123834160,-500.0,0.00014994,2]
[392908995,1762123834170,-150.0,0.00015,2]
[392908996,1762123834179,-3540.19394396,0.00015,2]
[392908997,1762123834188,-477.45087779,0.00015004,2]
[392908998,1762123834197,-200.0,0.00015013,2]
[392908999,1762123834206,-8882.6885148,0.00015019,2]
[392909000,1762123834215,-171.53113476,0.00015025,2]
[392909001,1762123834224,-501.22801815,0.00015052,2]
[392909002,1762123834233,-500.0,0.00015052,2]
[392909003,1762123834243,-500.0,0.00015052,2]
[392909004,1762123834252,-404.84,0.00015067,2]
[392909005,1762123834261,-865.5538498,0.00015073,2]
[392909006,1762123834270,-446.42263021,0.00015073,2]
[392909007,1762123834279,-369.84840788,0.00015073,2]
[392909008,1762123834288,-500.0,0.00015073,2]
[392909009,1762123834297,-206.53367866,0.00015073,2]
[392909010,1762123834307,-500.0,0.00015073,2]
[392909011,1762123834316,-491.15642448,0.00015073,2]
[392909012,1762123834325,-9211.34798985,0.00015074,2]
[392909013,1762123834335,-9552.16786547,0.00015129,2]
[392909014,1762123834344,-500.0,0.00015142,2]
[392909015,1762123834353,-500.0,0.00015142,2]
[392909016,1762123834362,-500.0,0.00015142,2]
[392909017,1762123834371,-167.2848613,0.00015142,2]
[392909018,1762123834380,-500.0,0.00015142,2]
[392909019,1762123834389,-507.83,0.00015165,2]
[392909020,1762123834398,-2082.32643996,0.00015184,2]
[392909021,1762123834420,-7823.27163654,0.00015184,2]
[392909022,1762123834430,-500.0,0.00015192,2]
[392909023,1762123834439,-10272.10520533,0.00015239,2]
[392909024,1762123834449,-500.0,0.00015261,2]
[392909025,1762123834458,-10652.17309792,0.00015294,2]
[392909026,1762123834467,-300.0,0.00015303,2]
[392909027,1762123834477,-1788.47318432,0.00015349,2]
[392909028,1762123834486,-574.76590107,0.00015408,2]
[392909029,1762123834496,-577.95237234,0.00015408,2]
[392909030,1762123834506,-194.38483642,0.00015408,2]
[392909031,1762123834515,-500.0,0.00015408,2]
[392909032,1762123834524,-500.0,0.00015421,2]
[392909033,1762123834534,-200.0,0.00015425,2]
[392909034,1762123834544,-204.30597501,0.00015425,2]
[392909035,1762123834554,-507.83,0.00015439,2]
[392909036,1762123834564,-151.0,0.00015457,2]
[392909037,1762123834574,-6469.0,0.00015486,2]
[392909038,1762123834583,-865.5538498,0.00015507,2]
[392909039,1762123834593,-711.25,0.00015612,2]
[392909040,1762123834607,-500.0,0.0001569,2]
[392909041,1762123834617,-500.0,0.0001569,2]
[392909042,1762123834627,-162.2636248,0.0001571,2]
[392909043,1762123834636,-507.83,0.00015713,2]
[392909044,1762123834645,-865.5538498,0.00015859,2]
[392909045,1762123834655,-865.5538498,0.00015896,2]
[392909046,1762123834666,-250.0,0.0001595,2]
[392909047,1762123834676,-300.0,0.00015951,2]
[392909048,1762123834685,-250.0,0.00015951,2]
[392909049,1762123834694,-195.0,0.00015951,2]
[392909050,1762123834704,-300.0,0.00015951,2]
[392909051,1762123834713,-500.0,0.00015953,2]
[392909052,1762123834723,-312.19761325,0.00015956,2]
[392909053,1762123834732,-507.86,0.00015987,2]
[392909054,1762123834742,-3136.33,0.00015996,2]
[392909055,1762123834753,-255.0,0.00016002,2]
[392909056,1762123834763,-151.0,0.00016005,2]
[392909057,1762123834774,-207.29567236,0.00016085,2]
[392909058,1762123834783,-217.908061,0.00016101,2]
[392909059,1762123834792,-217.908061,0.00016166,2]
[392909060,1762123834801,-420.0,0.00016185,2]
[392909061,1762123834810,-420.0,0.00016185,2]
[392909062,1762123834819,-1680.0,0.00016261,2]
[392909063,1762123834829,-248.71531821,0.00016278,2]
[392909064,1762123834838,-363.0,0.00016295,2]
[392909065,1762123834847,-865.5538498,0.00016333,2]
[392909066,1762123834856,-363.0,0.00016363,2]
[392909067,1762123834865,-500.0,0.00016419,2]
[392909068,1762123834874,-500.0,0.00016419,2]
[392909069,1762123834884,-6772.91323807,0.0001643,2]
[392909070,1762123834903,-500.0,0.00016438,2]
[392909071,1762123834919,-500.0,0.00016438,2]
[392909072,1762123834929,-500.0,0.00016438,2]
[392909073,1762123834939,-500.0,0.00016438,2]
[392909074,1762123834949,-587.67888658,0.00016438,2]
[392909075,1762123834960,-500.0,0.00016438,2]
[392909076,1762123834969,-376.78886581,0.00016438,2]
[392909077,1762123834979,-363.0,0.00016455,2]
[392909078,1762123834989,-500.0,0.00016472,2]
[392909079,1762123834999,-363.0,0.00016472,2]
[392909080,1762123835010,-217.908061,0.00016539,2]
[392909081,1762123835020,-184.8544265,0.00016553,2]
[392909082,1762123835030,-363.0,0.00016561,2]
[392909083,1762123835039,-363.0,0.00016564,2]
[392909084,1762123835049,-300.0,0.00016673,2]
[392909085,1762123835058,-865.5538498,0.00016681,2]
[392909086,1762123835068,-363.0,0.00016708,2]
[392909087,1762123835077,-195.97,0.00016712,2]
[392909088,1762123835087,-363.0,0.00016713,2]
[392909089,1762123835096,-217.908061,0.00016744,2]
[392909090,1762123835106,-363.0,0.00016797,2]
[392909091,1762123835115,-865.5538498,0.00016822,2]
[392909092,1762123835124,-363.0,0.00016841,2]
[392909093,1762123835134,-363.0,0.00016859,2]
[392909094,1762123835144,-363.0,0.00016871,2]
[392909095,1762123835153,-363.0,0.00016935,2]
[392909096,1762123835162,-363.0,0.00016977,2]
[392909097,1762123835173,-250.0,0.00017,2]
[392909098,1762123835183,-865.5538498,0.00017009,2]
[392909099,1762123835193,-363.0,0.00017132,2]
[392909100,1762123835202,-363.0,0.00017178,2]
[392909101,1762123835212,-217.908061,0.00017185,2]
[392909102,1762123835223,-363.0,0.00017191,2]
[392909103,1762123835233,-363.0,0.00017195,2]
[392909104,1762123835244,-433.0,0.00017221,2]
[392909105,1762123835254,-363.0,0.00017266,2]
[392909106,1762123835264,-865.5538498,0.00017308,2]
[392909107,1762123835274,-200.0,0.0001736,2]
[392909108,1762123835284,-217.908061,0.00017379,2]
[392909109,1762123835295,-500.0,0.00017411,7]
[392909110,1762123835306,-500.0,0.00017411,7]
[392909111,1762123835315,-500.0,0.00017411,7]
[392909112,1762123835324,-363.0,0.00017483,2]
[392909113,1762123835334,-363.0,0.00017504,2]
[392909114,1762123835343,-865.5538498,0.00017545,2]
[392909115,1762123835352,-248.71531821,0.00017647,2]
[392909116,1762123835361,-578.20924308,0.00017648,2]
[392909117,1762123835370,-500.0,0.00017685,7]
[392909118,1762123835380,-500.0,0.00017685,7]
[392909119,1762123835389,-500.0,0.00017687,2]
[392909120,1762123835398,-363.0,0.00017707,2]
[392909121,1762123835408,-1314.0,0.00017716,2]
[392909122,1762123835417,-587.0,0.00017717,2]
[392909123,1762123835427,-587.0,0.00017717,2]
[392909124,1762123835436,-217.908061,0.00017736,2]
[392909125,1762123835450,-363.0,0.00017757,2]
[392909126,1762123835461,-363.0,0.00017805,2]
[392909127,1762123835471,-865.5538498,0.00017816,2]
[392909128,1762123835481,-363.0,0.00017838,2]
[392909129,1762123835491,-418.9471488,0.00017847,2]
[392909130,1762123835504,-2351.0,0.00017887,2]
[392909131,1762123835514,-217.908061,0.0001791,2]
[392909132,1762123835525,-500.0,0.00017959,7]
[392909133,1762123835537,-782.31,0.00017959,7]
[392909134,1762123835547,-6772.91323807,0.00018051,2]
[392909135,1762123835558,-1000.0,0.00018082,2]
[392909136,1762123835569,-865.5538498,0.00018137,2]
[392909137,1762123835579,-217.908061,0.00018138,2]
[392909138,1762123835588,-500.0,0.00018233,7]
[392909139,1762123835598,-190.0,0.0001836,120]
[392909140,1762123835608,-865.5538498,0.00018377,2]
[392909141,1762123835618,-500.0,0.00018507,7]
[392909142,1762123835628,-217.908061,0.00018515,2]
[392909143,1762123835638,-736.0,0.0001853,2]
[392909144,1762123835648,-217.908061,0.00018736,2]
[392909145,1762123835658,-1000.0,0.0001876,2]
[392909146,1762123835668,-2348.314,0.00018767,2]
[392909147,1762123835678,-176.784,0.00018767,2]
[392909148,1762123835688,-500.0,0.00018781,7]
[392909149,1762123835698,-865.5538498,0.00018793,2]
[392909150,1762123835707,-155.41,0.00018885,2]
[392909151,1762123835718,-300.0,0.00019,2]
[392909152,1762123835727,-2590.67468976,0.00019,2]
[392909153,1762123835736,-500.0,0.00019055,7]
[392909154,1762123835746,-217.908061,0.00019071,2]
[392909155,1762123835755,-865.5538498,0.00019106,2]
[392909156,1762123835764,-151.0,0.00019178,2]
[392909157,1762123835774,-865.5538498,0.00019186,2]
[392909158,1762123835783,-217.908061,0.00019256,2]
[392909159,1762123835793,-5000.0,0.00019258,2]
[392909160,1762123835803,-5000.0,0.00019258,2]
[392909161,1762123835812,-5000.0,0.00019258,2]
[392909162,1762123835826,-5000.0,0.00019258,2]
[392909163,1762123835836,-190.0,0.00019278,120]
[392909164,1762123835847,-500.0,0.00019329,7]
[392909165,1762123835859,-823.0,0.00019395,2]
[392909166,1762123835870,-823.0,0.00019395,2]
[392909167,1762123835881,-1000.0,0.00019438,2]
[392909168,1762123835892,-697.96,0.00019468,2]
[392909169,1762123835907,-500.0,0.00019589,2]
[392909170,1762123835919,-492.0,0.00019589,2]
[392909171,1762123835930,-500.0,0.00019603,7]
[392909172,1762123835939,-217.908061,0.00019604,2]
[392909173,1762123835951,-162.2636248,0.00019637,2]
[392909174,1762123835960,-865.5538498,0.00019638,2]
[392909175,1762123835973,-6772.91323807,0.00019673,2]
[392909176,1762123835986,-3292.0,0.00019676,2]
[392909177,1762123835996,-500.0,0.00019726,2]
[392909178,1762123836006,-492.0,0.00019726,2]
[392909179,1762123836015,-156.587,0.00019726,2]
[392909180,1762123836025,-570.19309721,0.00019739,2]
[392909181,1762123836036,-865.55385,0.00019744,2]
[392909182,1762123836046,-1000.0,0.00019778,2]
[392909183,1762123836057,-418.94714879,0.00019784,2]
[392909184,1762123836068,-217.908075,0.00019787,2]
[392909185,1762123836078,-1425.0,0.0001979,2]
[392909186,1762123836088,-7365.11935226,0.000198,2]
[392909187,1762123836098,-1000.0,0.00019818,2]
[392909188,1762123836108,-1425.0,0.0001982,2]
[392909189,1762123836118,-1425.0,0.00019822,2]
[392909190,1762123836128,-400.41882234,0.00019828,2]
[392909191,1762123836138,-500.0,0.00019863,2]
[392909192,1762123836148,-492.0,0.00019863,2]
[392909193,1762123836158,-248.55,0.00019863,2]
[392909194,1762123836169,-1425.0,0.00019872,2]
[392909195,1762123836180,-500.0,0.00019877,7]
[392909196,1762123836189,-9981.4043,0.00019888,2]
[392909197,1762123836199,-1252.0,0.00019928,2]
[392909198,1762123836213,-1000.0,0.00019951,2]
[392909199,1762123836424,-500.0,0.00019973,2]
[392909200,1762123836464,-172.16017549,0.00019973,2]
[392909201,1762123836474,-161.1596466,0.00019973,2]
[392909202,1762123836484,-500.0,0.00019973,2]
[392909203,1762123836493,-350.95744023,0.00019973,2]
[392909204,1762123836502,-500.0,0.00019973,2]
[392909205,1762123836512,-1425.0,0.00019977,2]
[392909206,1762123836525,-1176.45,0.00019993,2]
[392909207,1762123836535,-151.0,0.00019997,2]
[392909208,1762123836544,-199.08,0.00019999,2]
[392909209,1762123836554,-500.0,0.00019999,2]
[392909210,1762123836563,-500.0,0.00019999,2]
[392909211,1762123836573,-500.0,0.0002,2]
[392909212,1762123836582,-492.0,0.0002,2]
[392909213,1762123836591,-41151.71980304,0.0002,7]
[392909214,1762123836601,-163.21,0.0002,14]
[392909215,1762123836611,-1450.38029038,0.0002,5]
[392909216,1762123836620,-107291.44744561,0.0002,5]
[392909217,1762123836634,-450.0,0.0002,5]
[392909218,1762123836650,-2205.88592063,0.0002,5]
[392909219,1762123836661,-20000.0,0.0002,5]
[392909220,1762123836677,-3121.77336805,0.0002,5]
[392909221,1762123836688,-4046.57858114,0.0002,5]
[392909222,1762123836699,-586.80506096,0.0002,5]
[392909223,1762123836711,-1082.56413463,0.0002,5]
[392909224,1762123836730,-699.36702806,0.0002,5]
[392909225,1762123836741,-936.02531955,0.0002,5]
[392909228,1762123837446,-160.0,0.00015,2]
[392909229,1762123837456,-9840.0,0.0002,5]
[392909230,1762123837505,-5498.8551464,0.0002,5]
[392909231,1762123837516,-1631.20255611,0.0002,5]
[392909232,1762123837527,-3070.82126733,0.0002,5]
[392909233,1762123837538,-16499.8317451,0.0002,5]
[392909234,1762123837550,-17329.69608533,0.0002,5]
[392909235,1762123837560,-5778.5856929,0.0002,5]
[392909236,1762123837620,-1621.04392749,0.0002,5]
[392909243,1762123839445,-1634.0,0.000197,2]
[392909244,1762123839455,-93.31835796,0.0002,5]
[392909245,1762123839737,-62630.28150525,0.0002,5]
[392909246,1762123839747,-2916.11460585,0.0002,3]
[392909247,1762123839756,-2000.0,0.0002,2]
[392909248,1762123839766,-2000.0,0.0002,2]
[392909249,1762123839775,-90017.40292998,0.0002,2]
[392909250,1762123839783,-2000.0,0.0002,2]
[392909251,1762123839793,-2000.0,0.0002,2]
[392909252,1762123839802,-160.0,0.0002,2]
[392909253,1762123839811,-203.71,0.0002,2]
[392909254,1762123839820,-184.12,0.0002,2]
[392909255,1762123839829,-184.12,0.0002,2]
[392909256,1762123839838,-184.12,0.0002,2]
[392909257,1762123839847,-1832.52654,0.0002,2]
[392909258,1762123839855,-200.0,0.0002,2]
[392909259,1762123839864,-9000.6906314,0.0002001,2]
[392909260,1762123839874,-1000.0,0.00020116,2]
[392909261,1762123839883,-500.0,0.00020137,2]
[392909262,1762123839892,-492.0,0.00020137,2]
[392909263,1762123839901,-9999.99,0.00020145,2]
[392909264,1762123839915,-500.0,0.00020151,7]
[392909265,1762123839924,-282.0,0.00020181,2]
[392909266,1762123839934,-245.5,0.00020185,2]
[392909267,1762123839943,-1000.0,0.00020187,2]